bitfinex/quotes_ETHUSD_20250223
["timestamp","ask_amount","ask_price","bid_price","bid_amount"]
[1740276209821,3.60978,2770.3,2770.1,0.2148503]
[1740276212173,0.7948,2770.4,2769.6,0.86379497]
[1740276212437,3.61045,2769.8,2769.6,0.73009497]
[1740276212645,3.61045,2769.8,2769.6,0.256]
[1740276213347,5.23948827,2770.0,2769.7,0.73283402]
[1740276213558,3.61023,2769.9,2769.7,0.73283402]
[1740276215152,3.61062,2769.6,2769.5,0.256]
[1740276215355,3.61062,2769.6,2769.5,0.97618275]
[1740276216784,0.7948,2769.6,2769.3,0.33815552]
[1740276217074,7.76588798,2769.4,2769.3,0.33815552]
[1740276217242,3.61133,2769.1,2768.9,7.373]
[1740276217624,3.6116,2768.9,2768.4,5.7797]
[1740276217873,3.61206,2768.5,2768.4,0.57797]
[1740276218077,0.7754,2769.0,2768.2,0.256]
[1740276218078,3.61237,2768.3,2768.2,0.256]
[1740276218287,3.61243,2768.3,2768.1,0.256]
[1740276218934,3.61242,2768.3,2768.1,0.256]
[1740276219132,3.61242,2768.3,2767.7,7.7637]
[1740276219133,3.61245,2768.2,2767.7,8.08671049]
[1740276219337,3.61245,2768.2,2767.7,7.374]
[1740276219666,3.61272,2768.0,2767.7,7.374]
[1740276219875,7.22552,2768.0,2767.7,7.374]
[1740276220354,3.61272,2768.0,2767.7,7.374]
[1740276220764,7.22506,2768.2,2767.7,7.374]
[1740276220943,4.38771,2768.4,2767.7,12.18461013]
[1740276221147,4.38771,2768.4,2767.7,8.57161013]
[1740276221350,3.61246,2768.2,2767.7,8.57161013]
[1740276221950,3.61261,2768.1,2767.7,7.374]
[1740276222385,3.61246,2768.2,2767.7,7.374]
[1740276223605,3.61296,2767.9,2767.7,7.374]
[1740276224208,3.61266,2768.1,2767.7,7.374]
[1740276224412,3.0,2768.2,2767.7,7.374]
[1740276225523,6.61246,2768.2,2767.7,7.374]
[1740276225819,3.0,2768.2,2767.7,7.374]
[1740276226024,0.7754,2768.4,2767.7,12.085741]
[1740276226174,4.38761,2768.4,2767.7,12.085741]
[1740276226673,3.0,2768.3,2767.8,3.61297]
[1740276226982,5.24,2768.5,2768.2,3.61236]
[1740276227383,5.24,2768.5,2768.2,3.61234]
[1740276227588,3.0,2768.8,2768.2,3.61234]
[1740276227589,0.7754,2768.9,2768.3,0.3897]
[1740276227796,0.7754,2768.9,2768.3,4.002]
[1740276227995,0.7754,2768.9,2768.3,0.3897]
[1740276228189,3.61167,2768.8,2768.3,0.3897]
[1740276228899,7.13559798,2768.9,2768.3,0.3897]
[1740276229221,7.22456,2768.4,2768.1,0.256]
[1740276229427,10.74719798,2768.9,2767.8,1.09517374]
[1740276229428,7.387,2768.9,2767.8,1.09517374]
[1740276229744,3.61252,2768.2,2767.9,0.256]
[1740276230575,3.61225,2768.4,2767.9,0.256]
[1740276231073,3.61254,2768.2,2767.9,0.256]
[1740276231715,7.22508,2768.2,2767.9,0.256]
[1740276231912,3.61254,2768.2,2767.9,0.256]
[1740276232119,7.22508,2768.2,2767.9,0.256]
[1740276232283,3.61263,2768.1,2767.9,0.256]
[1740276232815,3.61263,2768.1,2767.8,0.256]
[1740276233820,3.61284,2767.9,2767.8,0.256]
[1740276234127,3.61284,2767.9,2767.7,0.256]
[1740276234630,3.61272,2768.0,2767.7,0.256]
[1740276235782,3.61285,2767.9,2767.7,0.256]
[1740276236695,4.37872,2768.0,2767.7,0.256]
[1740276236894,3.61295,2767.9,2767.7,0.256]
[1740276237328,3.61311,2767.7,2767.3,0.27281899]
[1740276237503,0.766,2768.0,2767.4,0.256]
[1740276237504,3.6133,2767.6,2767.4,0.256]
[1740276238228,3.613,2767.8,2767.4,0.256]
[1740276239204,3.61319,2767.7,2767.4,0.256]
[1740276240637,7.22641,2767.7,2767.4,0.256]
[1740276240800,3.61319,2767.7,2767.4,0.256]
[1740276243809,3.61318,2767.7,2767.4,0.256]
[1740276244316,3.61318,2767.7,2767.2,0.33638727]
[1740276244518,4.12619798,2768.0,2767.2,0.33638727]
[1740276244519,4.43068,2767.5,2767.2,0.33638727]
[1740276244718,3.61359,2767.4,2767.2,0.33638727]
[1740276245741,0.8173,2767.5,2767.2,0.33638727]
[1740276245973,4.43067,2767.5,2767.2,0.33638727]
[1740276246909,3.61337,2767.5,2767.2,0.33638727]
[1740276247108,3.61337,2767.5,2767.0,0.256]
[1740276247109,3.61337,2767.5,2767.3,0.33638727]
[1740276248145,3.61337,2767.5,2767.4,0.33638727]
[1740276250466,6.61337,2767.5,2767.4,0.33638727]
[1740276250670,7.43067,2767.5,2767.4,0.33638727]
[1740276250854,3.8173,2767.5,2767.1,0.33638727]
[1740276251055,3.61364,2767.3,2767.1,0.33638727]
[1740276251353,3.61376,2767.2,2767.1,0.33638727]
[1740276253359,3.61376,2767.2,2766.9,0.33638727]
[1740276253673,3.61392,2767.1,2766.9,0.33638727]
[1740276255179,3.61392,2767.1,2767.0,0.33638727]
[1740276256777,3.61392,2767.1,2766.8,0.33638727]
[1740276257380,3.61376,2767.2,2766.8,0.33638727]
[1740276257544,3.614,2767.1,2766.8,0.33638727]
[1740276257739,3.614,2767.1,2766.9,0.33638727]
[1740276259455,3.614,2767.1,2766.8,0.33638727]
[1740276260683,3.614,2767.1,2766.9,0.33638727]
[1740276262086,3.614,2767.1,2766.7,0.6457]
[1740276262290,3.614,2767.1,2766.7,1.17145786]
[1740276262952,3.61428,2766.8,2766.6,0.7200576]
[1740276263150,3.61467,2766.5,2766.3,7.7697]
[1740276263380,7.22894,2766.7,2766.4,0.256]
[1740276263745,3.61444,2766.7,2766.4,0.256]
[1740276264148,3.0,2766.8,2766.4,0.256]
[1740276264953,3.0,2766.8,2766.5,0.33805269]
[1740276265673,4.41344,2767.2,2766.6,0.3897]
[1740276265861,3.0,2767.1,2766.6,0.3897]
[1740276266451,6.61393,2767.1,2766.6,0.3897]
[1740276266656,6.6139,2767.1,2766.6,0.3897]
[1740276266857,0.7996,2767.2,2766.6,0.3897]
[1740276267096,3.61396,2767.1,2766.6,0.3897]
[1740276267303,3.61403,2767.0,2766.6,0.3897]
[1740276267674,3.61396,2767.1,2766.6,0.3897]
[1740276268362,3.0,2767.3,2766.8,3.6142]
[1740276268556,6.61366,2767.3,2766.8,3.6142]
[1740276269491,6.61366,2767.3,2766.7,3.95248695]
[1740276269682,6.61366,2767.3,2766.9,0.33808695]
[1740276270062,3.61378,2767.2,2766.9,0.33808695]
[1740276271088,3.61378,2767.2,2766.8,0.33808695]
[1740276272694,3.61404,2767.0,2766.9,0.33808695]
[1740276273393,4.41684,2767.0,2766.9,0.33808695]
[1740276273596,7.41684,2767.0,2766.9,0.33808695]
[1740276274295,3.8028,2767.0,2766.5,0.33808695]
[1740276274478,7.22901,2766.7,2766.5,0.33808695]
[1740276274687,3.61454,2766.6,2766.5,0.33808695]
[1740276275896,4.41734,2766.6,2766.5,0.33808695]
[1740276277201,3.61468,2766.5,2766.3,0.256]
[1740276277496,3.61474,2766.5,2766.3,0.256]
[1740276278678,0.8028,2766.6,2766.1,7.7717]
[1740276278868,3.61501,2766.3,2766.1,7.7717]
[1740276280497,3.61501,2766.3,2766.2,0.33839397]
[1740276281906,4.40911,2766.3,2766.2,0.33839397]
[1740276282310,3.61514,2766.2,2766.0,0.257]
[1740276282606,3.61519,2766.1,2766.0,0.257]
[1740276285505,3.6154,2766.0,2765.8,0.33839397]
[1740276285887,3.6154,2766.0,2765.7,0.3897]
[1740276286289,3.61569,2765.8,2765.4,0.3897]
[1740276286481,3.61506,2766.2,2765.4,2.08827887]
[1740276286482,3.61524,2766.1,2765.4,2.08827887]
[1740276286681,3.61592,2765.6,2765.4,0.257]
[1740276287109,3.61598,2765.5,2765.4,0.257]
[1740276287625,3.61605,2765.5,2765.3,0.33815639]
[1740276288625,3.61611,2765.4,2765.3,0.33815639]
[1740276289217,3.61611,2765.4,2765.2,0.257]
[1740276290231,3.61606,2765.5,2765.2,0.257]
[1740276290830,4.40995,2765.6,2765.2,0.257]
[1740276291826,3.61585,2765.6,2765.2,0.257]
[1740276292128,0.7941,2765.8,2765.3,0.3897]
[1740276292328,3.0,2766.0,2765.4,3.616]
[1740276292531,3.0,2766.0,2765.4,0.787902]
[1740276292828,3.61546,2765.9,2765.3,0.3897]
[1740276293408,3.61564,2765.8,2765.3,0.3897]
[1740276295236,7.23104,2765.9,2765.3,0.3897]
[1740276295535,3.6156,2765.8,2765.3,0.3897]
[1740276296133,7.23101,2765.9,2765.3,0.3897]
[1740276297537,3.6156,2765.8,2765.3,0.3897]
[1740276297828,3.61546,2765.9,2765.3,0.3897]
[1740276298039,0.8136,2765.8,2765.3,0.3897]
[1740276298334,4.42925,2765.8,2765.3,0.3897]
[1740276300538,3.61624,2765.3,2765.2,0.3374562]
[1740276301528,3.61624,2765.3,2764.9,1.3836614]
[1740276301529,3.61624,2765.3,2764.9,1.7211176]
[1740276301923,4.42972,2765.4,2764.9,1.7211176]
[1740276302328,4.42972,2765.4,2764.9,1.4641176]
[1740276302720,3.61663,2765.0,2764.9,0.5944562]
[1740276302905,3.61663,2765.0,2764.9,0.3374562]
[1740276303565,4.43023,2765.0,2764.9,0.3374562]
[1740276303914,3.61676,2764.9,2764.8,7.384]
[1740276304226,6.61676,2764.9,2764.8,7.384]
[1740276305413,3.61711,2764.7,2764.4,0.257]
[1740276305753,3.0,2764.9,2764.2,0.3897]
[1740276305754,3.61718,2764.6,2764.2,0.3897]
[1740276306940,0.8136,2764.8,2764.3,3.61755]
[1740276307250,3.0,2764.9,2764.3,3.61755]
[1740276307563,3.0,2764.9,2764.2,0.3897]
[1740276307564,6.61678,2764.9,2764.2,0.3897]
[1740276307709,10.23366,2764.9,2764.2,0.3897]
[1740276307912,10.23367,2764.9,2764.2,0.3897]
[1740276308361,0.55,2764.8,2764.2,0.3897]
[1740276308508,3.61738,2764.5,2764.2,0.3897]
[1740276309217,3.61738,2764.5,2764.2,0.6467]
[1740276311268,0.8136,2764.7,2764.2,0.6467]
[1740276312267,3.61716,2764.6,2764.2,0.6467]
[1740276313266,4.4307,2764.7,2764.2,0.6467]
[1740276314880,0.8136,2764.7,2764.2,0.3897]
[1740276315045,3.61723,2764.6,2764.2,0.6467]
[1740276315578,3.61731,2764.5,2764.2,0.6467]
[1740276315785,3.61723,2764.6,2764.2,0.6467]
[1740276316252,3.61735,2764.5,2764.2,0.6467]
[1740276319069,3.61735,2764.5,2764.2,0.257]
[1740276319245,0.55,2764.6,2764.2,0.257]
[1740276319449,3.61729,2764.5,2764.2,0.257]
[1740276319659,7.23467,2764.5,2764.2,0.257]
[1740276320263,7.23467,2764.5,2764.1,0.005]
[1740276320264,3.61729,2764.5,2764.1,0.005]
[1740276320469,3.61729,2764.5,2764.1,0.262]
[1740276321569,5.79,2764.6,2764.1,0.262]
[1740276321865,5.24,2764.6,2764.2,0.3897]
[1740276323732,8.85717,2764.6,2764.2,0.3897]
[1740276324074,3.61729,2764.5,2764.2,0.3897]
[1740276324770,4.39159,2764.5,2764.1,0.59982904]
[1740276325155,3.61751,2764.4,2764.1,0.005]
[1740276327968,3.6175,2764.4,2764.1,0.005]
[1740276328758,3.6175,2764.4,2764.1,0.34282904]
[1740276330391,3.6175,2764.4,2764.2,0.33782904]
[1740276331496,3.6175,2764.4,2764.1,0.005]
[1740276334363,3.61766,2764.3,2764.1,0.005]
[1740276334564,3.61768,2764.2,2764.1,0.005]
[1740276335062,4.93658,2764.2,2764.1,0.005]
[1740276335486,3.0,2764.4,2764.1,0.005]
[1740276335797,0.55,2764.3,2764.1,0.005]
[1740276335995,5.24,2764.6,2764.1,3.62275]
[1740276336203,5.24,2764.6,2764.1,0.005]
[1740276336566,3.61736,2764.5,2764.1,0.005]
[1740276336893,8.85719,2764.6,2764.1,0.005]
[1740276337194,5.24,2764.6,2764.2,0.3390852]
[1740276337403,8.85716,2764.6,2764.2,0.3390852]
[1740276338268,5.24,2764.6,2764.3,0.3897]
[1740276339368,3.0,2764.7,2764.3,0.3897]
[1740276339571,3.61703,2764.7,2764.3,0.3897]
[1740276339800,3.61703,2764.7,2764.4,0.33904026]
[1740276340100,3.55,2764.8,2764.4,0.33904026]
[1740276340688,7.1669,2764.8,2764.4,0.33904026]
[1740276341000,3.55,2764.8,2764.4,0.33904026]
[1740276341402,3.55,2764.8,2764.3,0.6467]
[1740276342110,3.61656,2765.1,2764.3,4.26416]
[1740276342308,4.40956,2765.1,2764.3,4.26416]
[1740276342797,3.0,2765.0,2764.3,4.26416]
[1740276343009,6.61666,2765.0,2764.3,4.26416]
[1740276344038,6.61666,2765.0,2764.4,0.33905558]
[1740276345614,3.0,2764.8,2764.5,0.33905558]
[1740276347142,3.61666,2765.0,2764.3,4.26424]
[1740276348049,3.793,2765.1,2764.4,3.61741]
[1740276348418,0.55,2765.0,2764.5,0.3897]
[1740276348656,0.55,2765.0,2764.5,4.00698]
[1740276348844,0.55,2765.0,2764.5,0.3897]
[1740276349051,5.24,2765.2,2764.6,3.61715]
[1740276349451,3.55,2765.1,2764.6,3.61715]
[1740276349851,3.0,2765.1,2764.7,0.3897]
[1740276350054,3.0,2765.1,2764.7,0.72873907]
[1740276351176,3.0,2765.1,2764.8,0.33903907]
[1740276352461,3.0,2765.1,2764.7,0.3897]
[1740276356631,3.0,2765.1,2764.8,0.71722438]
[1740276359432,3.0,2765.1,2764.9,3.61675]
[1740276359646,3.0,2765.1,2765.0,0.3897]
[1740276360062,5.79,2765.4,2765.0,0.3897]
[1740276367673,5.24,2765.4,2765.0,0.3897]
[1740276367874,3.61572,2765.7,2765.1,0.3897]
[1740276368060,8.85572,2765.7,2765.1,0.3897]
[1740276368260,3.0,2765.6,2765.1,0.3897]
[1740276368461,3.0,2765.6,2765.1,4.00608]
[1740276368847,4.43435,2766.0,2765.2,0.3897]
[1740276369174,4.43435,2766.0,2765.3,0.3897]
[1740276369175,3.6158,2765.7,2765.3,0.3897]
[1740276370044,3.61559,2765.8,2765.3,0.3897]
[1740276370661,3.61578,2765.7,2765.3,0.3897]
[1740276371384,7.16553,2765.9,2765.3,4.00591]
[1740276371757,3.61563,2765.8,2765.3,4.00591]
[1740276372884,3.61563,2765.8,2765.3,0.3897]
[1740276373182,7.16553,2765.9,2765.3,0.3897]
[1740276373385,3.61564,2765.8,2765.3,0.3897]
[1740276373952,3.61576,2765.7,2765.3,0.3897]
[1740276375949,3.61559,2765.8,2765.3,0.3897]
[1740276376151,3.61605,2765.5,2765.1,0.3897]
[1740276377185,7.23211,2765.5,2765.1,0.3897]
[1740276377599,3.61611,2765.4,2765.1,0.3897]
[1740276378859,3.61605,2765.5,2765.1,0.3897]
[1740276379293,0.8089,2765.6,2765.1,0.3897]
[1740276379495,0.55,2765.6,2765.1,0.3897]
[1740276379715,0.55,2765.6,2765.2,3.61634]
[1740276380067,0.55,2765.6,2765.2,3.95502552]
[1740276381092,0.55,2765.6,2765.2,0.33868552]
[1740276381397,0.55,2765.6,2765.1,4.00613]
[1740276381866,5.24,2765.7,2765.2,0.3897]
[1740276382067,5.24,2765.7,2765.6,0.3897]
[1740276383706,5.24,2765.7,2765.6,4.00555]
[1740276384005,5.24,2766.1,2765.7,3.61568]
[1740276384179,9.40509,2766.2,2765.7,3.61568]
[1740276384381,3.0,2766.2,2765.8,3.61554]
[1740276384698,6.61516,2766.2,2765.6,4.00547]
[1740276384905,6.61516,2766.2,2765.6,4.76762]
[1740276385107,10.23035,2766.2,2765.6,4.76762]
[1740276385603,8.04842,2766.4,2765.9,0.3897]
[1740276385773,6.61496,2766.3,2765.9,0.3897]
[1740276386606,3.0,2766.3,2765.9,0.3897]
[1740276386796,3.0,2766.3,2766.0,3.61531]
[1740276387707,3.0,2766.3,2765.9,0.6467]
[1740276388497,3.0,2766.3,2765.9,4.26205]
[1740276390877,3.0,2766.3,2765.9,0.6467]
[1740276391218,3.0,2766.3,2765.9,4.26213]
[1740276392716,8.85462,2766.6,2766.0,3.61531]
[1740276392916,3.61467,2766.5,2766.0,3.61531]
[1740276393524,3.0,2766.4,2766.0,3.61531]
[1740276394030,3.61485,2766.4,2765.9,5.0499]
[1740276394411,6.6148,2766.5,2766.0,3.6153]
[1740276394610,6.6148,2766.5,2765.9,1.43446]
[1740276394611,3.61483,2766.4,2765.9,1.43446]
[1740276394818,6.6148,2766.5,2766.0,4.481856]
[1740276395212,6.6148,2766.5,2766.0,4.481786]
[1740276395712,3.0,2766.5,2766.1,0.3897]
[1740276396116,6.61467,2766.5,2766.1,0.3897]
[1740276396429,3.61487,2766.4,2766.1,0.3897]
[1740276396795,3.61485,2766.4,2766.1,0.3897]
[1740276397391,3.61485,2766.4,2765.4,3.61607]
[1740276397392,3.61547,2765.9,2765.7,0.3897]
[1740276397596,3.61531,2766.1,2765.7,0.6467]
[1740276397830,3.61531,2766.1,2765.7,1.072961]
[1740276398001,7.23062,2766.1,2765.7,1.072961]
[1740276398331,3.61535,2766.0,2765.7,1.072961]
[1740276398534,3.61531,2766.1,2765.7,1.072961]
[1740276398695,3.61531,2766.1,2765.7,0.6467]
[1740276398892,3.61539,2766.0,2765.7,0.6467]
[1740276400224,3.61531,2766.1,2765.7,0.6467]
[1740276400537,3.61487,2766.4,2765.7,0.6467]
[1740276400746,7.3778,2766.5,2765.9,3.61545]
[1740276400952,6.61468,2766.5,2766.1,4.00488]
[1740276401120,6.61468,2766.5,2766.1,0.3897]
[1740276401121,3.61494,2766.3,2766.1,0.3897]
[1740276401653,3.61494,2766.3,2765.8,0.3897]
[1740276401856,3.61515,2766.2,2765.8,0.3897]
[1740276402522,7.22996,2766.3,2765.8,0.3897]
[1740276402717,3.61494,2766.3,2765.9,0.426232]
[1740276402920,3.61508,2766.2,2765.9,0.426232]
[1740276403444,0.7631,2766.4,2765.9,0.426232]
[1740276403772,3.61532,2766.0,2765.8,0.3897]
[1740276403922,3.61508,2766.2,2765.8,0.3897]
[1740276404121,3.61519,2766.1,2765.8,0.3897]
[1740276404943,3.61539,2766.0,2765.8,0.3897]
[1740276407939,3.61539,2766.0,2765.5,0.6467]
[1740276407940,3.61545,2765.9,2765.5,0.6467]
[1740276408126,3.61545,2765.9,2765.5,1.0999203]
[1740276408946,3.61556,2765.9,2765.5,1.0999203]
[1740276410533,0.7631,2766.0,2765.5,1.0999203]
[1740276410733,3.61579,2765.7,2765.5,0.6467]
[1740276412824,3.61552,2765.9,2765.5,0.6467]
[1740276413067,3.61578,2765.7,2765.5,0.6467]
[1740276414657,3.61562,2765.8,2765.5,0.6467]
[1740276414855,3.61562,2765.8,2765.5,1.09949343]
[1740276415363,3.61552,2765.9,2765.5,1.09949343]
[1740276415657,3.61559,2765.8,2765.5,1.09949343]
[1740276416978,0.7631,2766.0,2765.5,4.71545343]
[1740276417460,3.61549,2765.9,2765.5,1.09949343]
[1740276419168,3.61522,2766.1,2765.5,4.71546343]
[1740276419364,3.61522,2766.1,2765.6,0.47155734]
[1740276420229,3.61534,2766.0,2765.5,4.71546343]
[1740276420558,3.61534,2766.0,2765.5,1.09949343]
[1740276420930,3.61534,2766.0,2765.5,4.71546343]
[1740276421634,3.61522,2766.1,2765.5,1.09949343]
[1740276421834,3.61532,2766.0,2765.5,0.6467]
[1740276422564,3.61522,2766.1,2765.5,0.6467]
[1740276422863,3.61549,2765.9,2765.5,0.6467]
[1740276423071,3.61547,2765.9,2765.5,0.6467]
[1740276424362,3.7856,2766.2,2765.5,0.6467]
[1740276424363,3.61532,2766.0,2765.5,0.6467]
[1740276424546,3.61551,2765.9,2765.5,0.6467]
[1740276425133,3.61523,2766.1,2765.5,0.6467]
[1740276425334,3.61552,2765.9,2765.5,0.6467]
[1740276425775,3.0,2766.2,2765.9,0.3897]
[1740276425947,5.24,2766.3,2765.9,3.61536]
[1740276426292,5.24,2766.3,2765.6,3.36957306]
[1740276426293,5.24,2766.3,2766.0,4.00501]
[1740276426668,5.24,2766.3,2766.0,0.3897]
[1740276426836,3.0,2766.6,2766.2,3.61495]
[1740276427173,3.0,2766.6,2766.0,4.00495]
[1740276427339,3.0,2766.4,2766.0,4.00495]
[1740276429468,3.0,2766.4,2766.0,4.73838808]
[1740276429866,3.61447,2766.7,2766.0,1.12313808]
[1740276430074,6.61456,2766.6,2766.1,3.61516]
[1740276430275,6.61456,2766.6,2766.2,0.3897]
[1740276433755,3.0,2766.6,2766.2,0.3897]
[1740276434080,9.63989,2766.8,2766.2,4.0047]
[1740276434081,13.25424,2766.8,2766.2,4.0047]
[1740276434279,3.0,2766.7,2766.2,4.0047]
[1740276434781,6.61443,2766.7,2766.2,4.0047]
[1740276435551,6.61443,2766.7,2766.2,0.3897]
[1740276435752,6.61443,2766.7,2766.2,4.00475]
[1740276436680,3.0,2766.7,2766.2,0.3897]
[1740276436888,3.0,2766.7,2766.3,3.61492]
[1740276438570,3.0,2766.7,2766.2,4.00467]
[1740276438800,3.0,2766.7,2766.2,4.47848081]
[1740276439891,3.0,2766.7,2766.2,0.86351081]
[1740276440191,5.24,2766.8,2766.5,4.00436]
[1740276441565,5.24,2766.8,2766.5,0.3897]
[1740276443483,3.61416,2766.9,2766.5,0.3897]
[1740276443862,3.0,2767.0,2766.5,4.00437]
[1740276444070,3.61421,2766.9,2766.5,0.3897]
[1740276444784,4.41252,2766.8,2766.3,4.26155]
[1740276447090,4.41252,2766.8,2766.3,7.87642]
[1740276447290,3.61432,2766.8,2766.3,4.26155]
[1740276455617,3.61432,2766.8,2766.4,3.61479]
[1740276456501,4.41227,2767.0,2766.4,7.22953]
[1740276456706,4.41227,2767.0,2766.4,4.402363]
[1740276456905,4.41227,2767.0,2766.3,0.257]
[1740276456906,8.01487,2767.2,2766.7,3.61435]
[1740276457085,4.40103,2767.2,2766.7,3.61435]
[1740276457485,3.61391,2767.1,2766.6,3.61453]
[1740276458020,3.61391,2767.1,2766.6,3.87053]
[1740276458185,3.61391,2767.1,2766.6,4.658013]
[1740276458381,4.40103,2767.2,2766.7,3.6144]
[1740276458585,4.40103,2767.2,2766.8,0.3897]
[1740276459620,3.61383,2767.2,2766.8,0.3897]
[1740276459817,3.0,2767.3,2766.8,0.3897]
[1740276460010,6.61365,2767.3,2766.8,4.00397]
[1740276462219,3.0,2767.3,2766.8,4.00397]
[1740276462540,3.0,2767.3,2766.9,3.61414]
[1740276463438,3.0,2767.3,2767.0,0.3897]
[1740276463626,3.0,2767.3,2767.0,4.00368]
[1740276464211,3.0,2767.4,2767.0,0.3897]
[1740276467229,6.6135,2767.4,2767.0,0.3897]
[1740276467831,3.0,2767.4,2767.0,4.00371]
[1740276468529,5.24,2767.6,2767.3,3.61363]
[1740276468731,4.43809,2767.7,2767.2,3.61373]
[1740276469032,3.61319,2767.7,2767.3,0.3897]
[1740276470002,6.0649,2767.9,2767.5,3.61334]
[1740276470202,9.67784,2767.9,2767.4,3.61347]
[1740276470432,5.24,2767.9,2767.4,3.61341]
[1740276470736,8.85291,2767.9,2767.4,3.86941]
[1740276470902,8.85291,2767.9,2767.5,0.4659447]
[1740276471998,3.61297,2767.8,2767.5,0.4659447]
[1740276472205,3.61297,2767.8,2767.4,0.256]
[1740276473333,3.61336,2767.5,2767.4,0.256]
[1740276474840,3.61396,2767.1,2766.8,0.3897]
[1740276475039,3.61402,2767.0,2766.9,0.256]
[1740276476124,4.41139,2767.1,2766.9,0.256]
[1740276476311,3.61402,2767.0,2766.9,0.256]
[1740276476516,4.41139,2767.1,2766.9,0.256]
[1740276477752,3.61371,2767.3,2767.0,0.3897]
[1740276478723,3.61343,2767.5,2767.0,4.429639]
[1740276479614,3.61351,2767.4,2767.0,0.815689]
[1740276480042,3.61343,2767.5,2767.0,0.815689]
[1740276480443,3.61343,2767.5,2767.0,4.429679]
[1740276480751,7.22683,2767.5,2767.0,0.815689]
[1740276481047,3.61339,2767.5,2767.0,0.3897]
[1740276481229,3.61366,2767.3,2767.0,0.3897]
[1740276481432,3.61379,2767.2,2766.9,0.256]
[1740276481843,3.61401,2767.1,2766.9,0.256]
[1740276482756,3.61401,2767.1,2766.6,4.00422]
[1740276482943,3.61401,2767.1,2766.6,5.66141519]
[1740276483832,3.61403,2767.0,2766.6,2.04689519]
[1740276484343,4.42466,2766.9,2766.6,1.40119519]
[1740276484545,3.61441,2766.7,2766.6,0.256]
[1740276484732,3.6145,2766.7,2766.4,0.256]
[1740276485054,3.61428,2766.8,2766.4,0.256]
[1740276489459,3.61441,2766.7,2766.4,0.256]
[1740276491853,3.61428,2766.8,2766.4,0.256]
[1740276492052,3.61442,2766.7,2766.4,0.256]
[1740276492257,3.61442,2766.7,2766.4,0.78109981]
[1740276492762,3.61467,2766.5,2766.2,1.10443807]
[1740276492944,3.61467,2766.5,2766.3,0.256]
[1740276495567,3.61467,2766.5,2766.2,0.3897]
[1740276495771,3.61467,2766.5,2765.9,7.7717]
[1740276495772,4.40787,2766.5,2765.9,7.7717]
[1740276496066,3.61494,2766.3,2766.0,0.256]
[1740276496253,3.61494,2766.3,2766.1,0.80277]
[1740276496846,3.61494,2766.3,2766.0,0.256]
[1740276497669,3.61494,2766.3,2766.0,0.97835693]
[1740276502072,4.40795,2766.5,2766.0,0.97835693]
[1740276502242,4.40795,2766.5,2766.0,4.59366693]
[1740276502442,8.0227,2766.5,2766.0,4.59366693]
[1740276502665,8.0227,2766.5,2766.0,5.45355462]
[1740276502860,3.6148,2766.4,2766.0,5.45355462]
[1740276503172,0.8168,2766.8,2766.1,0.3897]
[1740276503470,5.24,2766.9,2766.4,0.3897]
[1740276503774,3.61441,2766.8,2766.4,0.3897]
[1740276504270,5.24,2766.9,2766.4,0.3897]
[1740276504469,5.24,2766.9,2766.4,4.00442]
[1740276504795,5.24,2766.9,2766.4,4.766347]
[1740276505073,5.24,2766.9,2766.5,3.61465]
[1740276505454,5.24,2766.9,2766.6,3.61454]
[1740276505661,5.24,2766.9,2766.7,4.00402]
[1740276505878,5.24,2766.9,2766.7,4.73411506]
[1740276506047,5.24,2766.9,2766.7,2.11795224]
[1740276506749,5.24,2766.9,2766.7,0.3897]
[1740276508284,5.24,2766.9,2766.8,4.33727884]
[1740276508451,0.8168,2767.4,2766.9,3.61408]
[1740276508658,0.8168,2767.4,2767.0,3.61394]
[1740276509478,0.8168,2767.4,2766.8,4.59314884]
[1740276509774,8.85344,2767.5,2766.9,8.08799688]
[1740276509977,3.61326,2767.6,2767.0,4.00365]
[1740276510180,3.61343,2767.5,2767.0,4.00365]
[1740276518180,7.22658,2767.6,2767.0,4.00364]
[1740276518373,3.61337,2767.5,2767.0,4.94929557]
[1740276520081,4.42991,2767.7,2767.0,4.94929557]
[1740276520289,4.42991,2767.7,2767.2,3.61373]
[1740276522397,4.42991,2767.7,2767.1,3.61388]
[1740276522598,4.42991,2767.7,2767.2,0.72875167]
[1740276524801,3.61325,2767.6,2767.2,0.72875167]
[1740276525367,0.7963,2767.5,2767.2,0.72875167]
[1740276525602,0.7963,2767.2,2766.7,3.89114558]
[1740276525901,0.7963,2767.2,2766.9,0.256]
[1740276526693,0.7963,2767.2,2766.8,1.69504017]
[1740276526889,3.6139,2767.1,2766.8,1.22308456]
[1740276527093,3.61402,2767.0,2766.6,5.39]
[1740276527297,3.61402,2767.0,2766.7,0.256]
[1740276527468,7.22811,2767.0,2766.7,0.256]
[1740276527771,3.61422,2766.9,2766.7,0.256]
[1740276527975,0.7963,2766.8,2766.7,0.256]
[1740276528286,4.41013,2767.2,2766.7,0.256]
[1740276528483,4.41013,2767.2,2766.7,4.257364]
[1740276529684,0.7963,2767.2,2766.7,7.871684]
[1740276529906,0.7963,2767.2,2766.7,4.257364]
[1740276530195,4.41013,2767.2,2766.7,0.643054]
[1740276530398,0.7963,2767.2,2766.7,0.643054]